bitfinex/quotes_BTCUSD_20230107
["timestamp","ask_amount","ask_price","bid_price","bid_amount"]
[1673098604723,0.79731196,16939.0,16938.0,62.6696377]
[1673098604978,0.79731196,16939.0,16938.0,63.2509547]
[1673098606173,0.79731196,16939.0,16938.0,63.6696377]
[1673098606483,0.79731196,16939.0,16938.0,62.73943702]
[1673098606748,0.79731196,16939.0,16938.0,63.15812002]
[1673098606964,0.79731196,16939.0,16938.0,62.17317336]
[1673098607226,0.79731196,16939.0,16938.0,62.66841249]
[1673098607736,0.79731196,16939.0,16938.0,62.17317336]
[1673098608002,0.79731196,16939.0,16938.0,62.7484314]
[1673098608506,0.79731196,16939.0,16938.0,61.7484314]
[1673098608756,0.79731196,16939.0,16938.0,62.7484314]
[1673098609002,0.79731196,16939.0,16938.0,62.17317336]
[1673098609265,0.79731196,16939.0,16938.0,62.59185636]
[1673098610279,1.06312662,16939.0,16938.0,62.59185636]
[1673098610514,0.62019721,16939.0,16938.0,62.17317336]
[1673098611069,0.62019721,16939.0,16938.0,62.59185636]
[1673098611327,0.62019721,16939.0,16938.0,62.17317336]
[1673098611645,0.62019721,16939.0,16938.0,62.79609262]
[1673098611808,1.06312662,16939.0,16938.0,62.79609262]
[1673098612316,1.06311025,16939.0,16938.0,62.79609262]
[1673098612818,0.62018084,16939.0,16938.0,63.21477562]
[1673098613571,0.62018084,16939.0,16938.0,62.79609262]
[1673098613823,0.62018084,16939.0,16938.0,63.21477562]
[1673098614072,0.62018084,16939.0,16938.0,62.79609262]
[1673098614318,0.62018084,16939.0,16938.0,62.59185636]
[1673098614830,0.62018084,16939.0,16938.0,62.69091036]
[1673098615090,0.62018084,16939.0,16938.0,62.59185636]
[1673098615361,0.62018084,16939.0,16938.0,63.10959338]
[1673098615863,0.62018084,16939.0,16938.0,63.80959338]
[1673098616116,0.62018084,16939.0,16938.0,63.39091038]
[1673098616368,0.62018084,16939.0,16938.0,63.8096551]
[1673098616872,0.79735084,16939.0,16938.0,63.8096551]
[1673098617372,0.79735084,16939.0,16938.0,63.3909721]
[1673098617621,0.79735084,16939.0,16938.0,63.8096551]
[1673098618386,0.44296829,16939.0,16938.0,63.8096551]
[1673098618649,0.44296829,16939.0,16938.0,63.3909721]
[1673098618896,0.44296829,16939.0,16938.0,63.8096551]
[1673098619147,0.44296829,16939.0,16938.0,63.3909721]
[1673098619399,0.44296829,16939.0,16938.0,63.8096551]
[1673098620396,0.44296829,16939.0,16938.0,63.76268952]
[1673098620646,0.44296829,16939.0,16938.0,63.34400652]
[1673098620910,0.44296829,16939.0,16938.0,63.88072961]
[1673098621437,0.44296829,16939.0,16938.0,63.46204661]
[1673098621759,0.44296829,16939.0,16938.0,63.88072961]
[1673098621959,0.44296829,16939.0,16938.0,62.544953]
[1673098622211,0.44296829,16939.0,16938.0,62.12627]
[1673098622456,0.44296829,16939.0,16938.0,62.544953]
[1673098622956,0.44296829,16939.0,16938.0,62.74349227]
[1673098623226,0.44296829,16939.0,16938.0,62.544953]
[1673098623474,0.79735084,16939.0,16938.0,62.544953]
[1673098623982,0.44296829,16939.0,16938.0,62.12627]
[1673098624334,0.79735084,16939.0,16938.0,62.12627]
[1673098625350,0.79732285,16939.0,16938.0,62.544953]
[1673098625927,0.4429403,16939.0,16938.0,63.06262662]
[1673098626177,0.4429403,16939.0,16938.0,62.64394362]
[1673098626404,0.4429403,16939.0,16938.0,63.06262662]
[1673098626928,0.4429403,16939.0,16938.0,62.64394362]
[1673098627160,0.4429403,16939.0,16938.0,63.06262662]
[1673098627639,0.4429403,16939.0,16938.0,62.64394362]
[1673098627897,0.4429403,16939.0,16938.0,63.06262662]
[1673098628148,0.4429403,16939.0,16938.0,62.544953]
[1673098629638,0.4429403,16939.0,16938.0,62.64404248]
[1673098629896,0.4429403,16939.0,16938.0,63.06272548]
[1673098630159,0.4429403,16939.0,16938.0,62.12627]
[1673098630427,0.4429403,16939.0,16938.0,63.06269519]
[1673098630713,0.4429403,16939.0,16938.0,62.544953]
[1673098630927,0.4429403,16939.0,16938.0,62.12627]
[1673098631439,0.4429403,16939.0,16938.0,62.544953]
[1673098631692,0.4429403,16939.0,16938.0,63.19080475]
[1673098632222,0.4429403,16939.0,16938.0,62.12627]
[1673098633243,0.4429403,16939.0,16938.0,63.06266498]
[1673098633722,0.4429403,16939.0,16938.0,62.544953]
[1673098633969,0.4429403,16939.0,16938.0,63.0626496]
[1673098634222,0.4429403,16939.0,16938.0,62.544953]
[1673098634457,0.4429403,16939.0,16938.0,62.64391046]
[1673098634679,0.4429403,16939.0,16938.0,63.06259346]
[1673098634913,0.17714201,16939.0,16938.0,62.84391046]
[1673098635166,0.17714201,16939.0,16938.0,63.26259346]
[1673098636412,0.17714201,16939.0,16938.0,62.84391046]
[1673098636676,0.17714201,16939.0,16938.0,63.26259346]
[1673098636906,0.17714201,16939.0,16938.0,63.54391046]
[1673098637217,0.17714201,16939.0,16938.0,63.96259346]
[1673098637473,0.17714201,16939.0,16938.0,63.54391046]
[1673098637731,0.17714201,16939.0,16938.0,63.96259346]
[1673098638922,0.17714201,16939.0,16938.0,64.25777346]
[1673098639933,0.4429403,16939.0,16938.0,64.25777346]
[1673098640152,0.17714201,16939.0,16938.0,64.25777346]
[1673098642553,0.4429403,16939.0,16938.0,64.25777346]
[1673098642822,0.17714201,16939.0,16938.0,64.25777346]
[1673098647542,0.17714201,16939.0,16938.0,64.43067346]
[1673098649916,0.17714201,16939.0,16938.0,63.73066346]
[1673098650912,0.17714201,16939.0,16938.0,64.43066346]
[1673098651182,0.17714201,16939.0,16938.0,64.43067346]
[1673098652741,0.17714201,16939.0,16938.0,64.43068346]
[1673098653242,0.17714201,16939.0,16938.0,64.60749101]
[1673098654507,0.17714201,16939.0,16938.0,64.60748101]
[1673098656063,0.17714201,16939.0,16938.0,64.43068346]
[1673098656554,0.17714201,16939.0,16938.0,64.60749101]
[1673098656800,0.17714201,16939.0,16938.0,63.90749101]
[1673098657832,0.17714201,16939.0,16938.0,64.60749101]
[1673098658087,0.17714201,16939.0,16938.0,64.60748101]
[1673098658586,0.17714201,16939.0,16938.0,64.40748101]
[1673098658839,0.17714201,16939.0,16938.0,64.82462113]
[1673098659612,0.17714201,16939.0,16938.0,65.02462113]
[1673098660646,0.17714201,16939.0,16938.0,65.20142868]
[1673098661158,0.17714201,16939.0,16938.0,65.20143868]
[1673098663750,0.17714201,16939.0,16938.0,64.50143868]
[1673098664522,0.57308971,16940.0,16938.0,65.20143868]
[1673098664770,0.57308971,16940.0,16939.0,0.82653026]
[1673098665039,0.57308971,16940.0,16939.0,3.12589226]
[1673098665549,0.57308971,16940.0,16939.0,3.82589226]
[1673098665805,0.30729142,16940.0,16939.0,4.00269981]
[1673098666060,0.13014941,16940.0,16939.0,4.17629981]
[1673098666314,0.13004146,16940.0,16939.0,12.68294128]
[1673098666580,0.13004146,16940.0,16939.0,13.62759278]
[1673098667081,0.13004146,16940.0,16939.0,13.65359278]
[1673098668138,0.13004146,16940.0,16939.0,14.25359278]
[1673098668395,0.1301597,16941.0,16940.0,0.7]
[1673098668616,0.1301597,16941.0,16940.0,5.98824863]
[1673098668912,0.1301597,16941.0,16940.0,7.15809153]
[1673098669225,0.1301597,16941.0,16940.0,6.14178579]
[1673098669707,0.1301597,16941.0,16940.0,13.90687463]
[1673098670519,0.1711597,16941.0,16940.0,15.25864586]
[1673098670982,0.1711597,16941.0,16940.0,14.24278579]
[1673098672007,0.1711597,16941.0,16940.0,14.27009312]
[1673098672777,0.1711597,16941.0,16940.0,14.24278579]
[1673098674095,0.1711597,16941.0,16940.0,13.46888579]
[1673098674856,0.1711597,16941.0,16940.0,13.2921599]
[1673098676735,0.1711597,16941.0,16940.0,13.37632117]
[1673098677776,0.1711597,16941.0,16940.0,13.4036285]
[1673098678736,0.1711597,16941.0,16940.0,13.37632117]
[1673098680235,0.1711597,16941.0,16940.0,12.67632117]
[1673098680487,0.1711597,16941.0,16940.0,12.97143117]
[1673098681260,0.1711597,16941.0,16940.0,13.67143117]
[1673098682532,0.1711597,16941.0,16940.0,13.67175877]
[1673098683596,0.1711597,16941.0,16940.0,14.27175877]
[1673098684605,0.1711597,16941.0,16940.0,13.67175877]
[1673098686017,0.1711597,16941.0,16940.0,14.27175877]
[1673098686285,0.1711597,16941.0,16940.0,13.6990661]
[1673098686550,0.1711597,16941.0,16940.0,13.67175877]
[1673098687350,0.1711597,16941.0,16940.0,12.97175877]
[1673098687581,0.1711597,16941.0,16940.0,13.14565877]
[1673098688193,0.1711597,16941.0,16940.0,13.84565877]
[1673098689816,0.17108511,16941.0,16940.0,13.84565877]
[1673098690344,0.17108511,16941.0,16940.0,13.84594611]
[1673098694127,0.17108511,16941.0,16940.0,13.14594611]
[1673098694956,0.17108511,16941.0,16940.0,13.322672]
[1673098695220,0.17108511,16941.0,16940.0,14.022672]
[1673098695725,0.17108511,16941.0,16940.0,14.04997933]
[1673098696399,0.17108511,16941.0,16940.0,14.64997933]
[1673098696648,0.17108511,16941.0,16940.0,14.622672]
[1673098698748,0.17108511,16941.0,16940.0,14.64997933]
[1673098698996,0.17108511,16941.0,16940.0,14.91506817]
[1673098699478,0.041,16941.0,16940.0,14.91506817]
[1673098699980,0.041,16941.0,16940.0,14.91505817]
[1673098700232,0.041,16941.0,16940.0,14.64996933]
[1673098700733,0.041,16941.0,16940.0,14.91505817]
[1673098700997,0.041,16941.0,16940.0,15.66765956]
[1673098701248,0.041,16941.0,16940.0,14.96765956]
[1673098702349,0.041,16941.0,16940.0,15.66765956]
[1673098702873,0.041,16941.0,16940.0,15.84494505]
[1673098703628,0.041,16941.0,16940.0,15.84495505]
[1673098703881,0.041,16941.0,16940.0,15.81764772]
[1673098704918,0.041,16941.0,16940.0,15.99513956]
[1673098706452,0.041,16941.0,16940.0,15.39513956]
[1673098707227,0.041,16941.0,16940.0,14.0587759]
[1673098707750,0.21814201,16941.0,16940.0,5.89120915]
[1673098708049,0.21814201,16941.0,16940.0,5.16408315]
[1673098708258,0.82599901,16941.0,16940.0,5.16408315]
[1673098708512,0.21814201,16941.0,16940.0,5.16408315]
[1673098708766,0.041,16941.0,16940.0,4.98720889]
[1673098709272,0.21814201,16941.0,16940.0,4.98720889]
[1673098709536,0.21814201,16941.0,16940.0,5.29570889]
[1673098710320,0.041,16941.0,16940.0,5.39105253]
[1673098710568,0.041,16941.0,16940.0,5.9571878]
[1673098710820,0.041,16941.0,16940.0,5.93016781]
[1673098711599,0.041,16941.0,16940.0,4.74043254]
[1673098711862,0.21814201,16941.0,16940.0,4.74043254]
[1673098712651,0.041,16941.0,16940.0,4.74043254]
[1673098712915,0.041,16941.0,16940.0,5.15905854]
[1673098716002,0.041,16941.0,16940.0,4.74043254]
[1673098716536,0.21814201,16941.0,16940.0,4.74043254]
[1673098716758,0.041,16941.0,16940.0,4.74043254]
[1673098717122,0.21814201,16941.0,16940.0,4.74043254]
[1673098717821,0.21814201,16941.0,16940.0,4.04043254]
[1673098718039,0.82599901,16941.0,16940.0,4.04043254]
[1673098718556,0.21814201,16941.0,16940.0,4.04043254]
[1673098718770,0.21814201,16941.0,16940.0,3.75905854]
[1673098719048,0.21814201,16941.0,16940.0,3.34043254]
[1673098719534,0.21814201,16941.0,16940.0,3.14043254]
[1673098719819,0.21814201,16941.0,16940.0,2.14043254]
[1673098720170,0.21814201,16941.0,16940.0,42.14028163]
[1673098720420,0.21814201,16941.0,16940.0,42.55890763]
[1673098721125,0.21814201,16941.0,16940.0,43.55890763]
[1673098721386,0.21814201,16941.0,16940.0,42.14028163]
[1673098722393,0.21814201,16941.0,16940.0,42.55890763]
[1673098722873,0.21814201,16941.0,16940.0,42.14028163]
[1673098723086,0.21814201,16941.0,16940.0,43.14028163]
[1673098723568,0.21814201,16941.0,16940.0,43.55890763]
[1673098723802,0.21814201,16941.0,16940.0,43.55919497]
[1673098725603,0.21814201,16941.0,16940.0,42.14056897]
[1673098726367,0.21814201,16941.0,16940.0,43.14056897]
[1673098726622,0.21814201,16941.0,16940.0,42.14056897]
[1673098727991,0.21814201,16941.0,16940.0,42.55919497]
[1673098728508,0.21814201,16941.0,16940.0,43.55919497]
[1673098728786,2.21814201,16941.0,16940.0,43.55919497]
[1673098729576,2.21814201,16941.0,16940.0,42.14056897]
[1673098730432,2.21814201,16941.0,16940.0,43.55919497]
[1673098730686,2.21814201,16941.0,16940.0,42.55919497]
[1673098731196,2.21814201,16941.0,16940.0,42.14056897]
[1673098732250,2.21814201,16941.0,16940.0,42.55919497]
[1673098732511,2.21814201,16941.0,16940.0,42.14056897]
[1673098732838,2.21814201,16941.0,16940.0,42.55919497]
[1673098733128,2.21814201,16941.0,16940.0,43.14056897]
[1673098733641,2.21814201,16941.0,16940.0,43.55919497]
[1673098733896,2.21814201,16941.0,16940.0,43.14056897]
[1673098734184,2.21814201,16941.0,16940.0,42.14056897]
[1673098735220,2.21814201,16941.0,16940.0,42.55919497]
[1673098736322,2.21814201,16941.0,16940.0,42.14056897]
[1673098737147,2.21814201,16941.0,16940.0,43.55919497]
[1673098738164,2.21814201,16941.0,16940.0,43.14056897]
[1673098739145,2.21814201,16941.0,16940.0,43.55919497]
[1673098739395,2.21814201,16941.0,16940.0,43.14056897]
[1673098740941,2.4839403,16941.0,16940.0,42.14028163]
[1673098741197,2.21814201,16941.0,16940.0,42.14028163]
[1673098741449,2.4839403,16941.0,16940.0,42.14028163]
[1673098743363,2.83832285,16941.0,16940.0,42.14028163]
[1673098744598,2.66118084,16941.0,16940.0,42.14028163]
[1673098746585,2.83831196,16941.0,16940.0,42.14028163]
[1673098747539,2.95726217,16941.0,16940.0,42.14028163]
[1673098748026,2.83831196,16941.0,16940.0,42.14028163]
[1673098748800,3.10389454,16941.0,16940.0,42.14028163]
[1673098749278,2.83831196,16941.0,16940.0,42.14028163]
[1673098749979,2.95726403,16941.0,16940.0,42.14028163]
[1673098752500,2.60288148,16941.0,16940.0,42.14019209]
[1673098768332,2.15995207,16941.0,16940.0,41.84019209]
[1673098769002,2.15995207,16941.0,16940.0,42.14019209]
[1673098769260,2.60264151,16941.0,16940.0,42.14019209]
[1673098769487,2.15995207,16941.0,16940.0,42.14019209]
[1673098772959,2.15995207,16941.0,16940.0,41.84019209]
[1673098775178,2.15995207,16941.0,16940.0,42.14019209]
[1673098775439,2.15995207,16941.0,16940.0,42.14012078]
[1673098782173,2.15995207,16941.0,16940.0,41.84012078]
[1673098791907,2.69127238,16941.0,16940.0,41.84012078]
[1673098792215,2.15995207,16941.0,16940.0,41.84012078]
[1673098792473,2.69127238,16941.0,16940.0,41.84012078]
[1673098795487,2.97778962,16941.0,16940.0,41.84012078]
[1673098797366,2.69127238,16941.0,16940.0,41.84005137]
[1673098797639,2.86517238,16941.0,16940.0,41.84005137]
[1673098798353,2.86509323,16941.0,16940.0,41.84005137]
[1673098800500,2.86509323,16941.0,16940.0,42.74005137]
[1673098800725,2.33377292,16941.0,16940.0,42.74005137]
[1673098800948,2.33377292,16941.0,16940.0,42.14005137]
[1673098801187,2.86509323,16941.0,16940.0,41.84005137]
[1673098802702,2.86509323,16941.0,16940.0,41.83227437]
[1673098804403,2.86509323,16941.0,16940.0,42.43227437]
[1673098804663,2.86509323,16941.0,16940.0,42.73227437]
[1673098809890,2.86509323,16941.0,16940.0,42.43227437]
[1673098810277,2.86509323,16941.0,16940.0,42.73227437]
[1673098810784,2.86509323,16941.0,16940.0,42.43227437]
[1673098811516,2.98283112,16941.0,16940.0,42.43227437]
[1673098812016,2.86509323,16941.0,16940.0,42.43227437]
[1673098812272,2.86509323,16941.0,16940.0,41.83227437]
[1673098812489,2.86509323,16941.0,16940.0,42.43227437]
[1673098812700,2.86509323,16941.0,16940.0,41.83227437]
[1673098812956,2.86509323,16941.0,16940.0,42.43227437]
[1673098813176,2.86509323,16941.0,16940.0,41.82377437]
[1673098813437,3.44147186,16941.0,16940.0,40.6673211]
[1673098813698,4.04932886,16941.0,16940.0,40.6673211]
[1673098814202,3.44147186,16941.0,16940.0,40.6673211]
[1673098816961,2.91015155,16941.0,16940.0,40.6673211]
[1673098817232,3.44163232,16941.0,16940.0,40.6673211]
[1673098817489,3.48154853,16941.0,16940.0,40.08501036]
[1673098817742,4.6874767,16941.0,16940.0,40.08501036]
[1673098818010,4.28997972,16941.0,16940.0,40.08501036]
[1673098818506,3.51800855,16941.0,16940.0,40.08501036]
[1673098824162,3.51800855,16941.0,16940.0,40.08492909]
[1673098835893,4.04895231,16941.0,16940.0,40.08492909]
[1673098842021,3.87505231,16941.0,16940.0,40.08492909]
[1673098844391,3.34410855,16941.0,16940.0,40.08492909]
[1673098845409,3.34410855,16941.0,16940.0,40.08484097]
[1673098851392,2.76772992,16941.0,16940.0,40.08484097]
[1673098852389,3.36580109,16941.0,16940.0,40.08484097]
[1673098852894,2.76772992,16941.0,16940.0,40.08484097]
[1673098853146,2.15987292,16941.0,16940.0,40.08484097]
[1673098853374,2.76772992,16941.0,16940.0,40.08484097]
[1673098854361,3.36580109,16941.0,16940.0,40.08484097]
[1673098854858,2.76772992,16941.0,16940.0,40.08484097]
[1673098855108,3.36580109,16941.0,16940.0,40.08484097]
[1673098855358,2.76772992,16941.0,16940.0,40.08484097]
[1673098856460,3.36580109,16941.0,16940.0,40.08484097]
[1673098856688,2.76772992,16941.0,16940.0,40.08484097]
[1673098857158,3.36580109,16941.0,16940.0,40.08484097]
[1673098862552,3.78124139,16941.0,16940.0,40.08484097]
[1673098862813,3.36580109,16941.0,16940.0,40.08484097]
[1673098865615,3.36580109,16941.0,16940.0,40.08475281]
[1673098874539,2.76772992,16941.0,16940.0,40.08475281]
[1673098874784,3.36580109,16941.0,16940.0,40.08475281]
[1673098875361,3.46995406,16941.0,16940.0,40.08475281]
[1673098878273,3.36580109,16941.0,16940.0,40.08557517]
[1673098878508,3.36580109,16941.0,16940.0,40.08475281]
[1673098879304,3.36580109,16941.0,16940.0,40.08557517]
[1673098879518,3.36580109,16941.0,16940.0,40.08475281]
[1673098880374,3.36580109,16941.0,16940.0,40.08557517]
[1673098880755,3.36580109,16941.0,16940.0,40.60728547]
[1673098881002,2.75794409,16941.0,16940.0,40.60728547]
[1673098881798,2.75794409,16941.0,16940.0,41.19678111]
[1673098882620,2.75794409,16941.0,16940.0,41.19760347]
[1673098883674,2.75794409,16941.0,16940.0,40.60728547]
[1673098883921,2.15987292,16941.0,16940.0,40.60728547]
[1673098887532,2.33377292,16941.0,16940.0,40.60728547]
[1673098887791,2.33377292,16941.0,16940.0,40.60646311]
[1673098888070,2.94162992,16941.0,16940.0,40.60646311]
[1673098890532,2.94162992,16941.0,16940.0,40.60634849]
[1673098891118,2.94162992,16941.0,16940.0,40.60717085]
[1673098891373,2.94162992,16941.0,16940.0,40.60634849]
[1673098891609,3.53970109,16941.0,16940.0,40.60634849]
[1673098893547,3.53970109,16941.0,16940.0,40.60717085]
[1673098897462,3.36580109,16941.0,16940.0,40.60717085]
[1673098897730,2.75794409,16941.0,16940.0,40.60717085]
[1673098899224,3.36580109,16941.0,16940.0,40.60717085]
[1673098900277,2.75794409,16941.0,16940.0,41.19748885]
[1673098900522,2.15987292,16941.0,16940.0,41.19748885]
[1673098903445,2.15979355,16941.0,16940.0,41.19748885]
[1673098904633,2.69130206,16941.0,16940.0,41.19748885]
[1673098905478,3.29915906,16941.0,16940.0,41.19748885]
[1673098906506,3.29913791,16941.0,16940.0,41.19748885]
[1673098907271,2.76765055,16941.0,16940.0,41.19666649]
[1673098908770,2.15979355,16941.0,16940.0,41.19666649]
[1673098909813,2.76765055,16941.0,16940.0,41.19666649]
[1673098910906,2.76765055,16941.0,16940.0,41.19748885]
[1673098911412,2.76765055,16941.0,16940.0,40.03424715]
[1673098911669,2.76765055,16941.0,16940.0,40.13091599]
[1673098911928,2.76765055,16941.0,16940.0,40.13173835]
[1673098912184,2.76765055,16941.0,16940.0,40.08026999]
[1673098913510,2.76765055,16941.0,16940.0,40.07944763]
[1673098913726,3.36572172,16941.0,16940.0,40.07944763]
[1673098913962,3.60909733,16941.0,16940.0,40.07944763]
[1673098914488,3.60909733,16941.0,16940.0,40.08026999]
[1673098919048,3.60909733,16941.0,16940.0,40.07944763]
[1673098919301,3.36572172,16941.0,16940.0,40.07944763]
[1673098919807,3.36572172,16941.0,16940.0,39.98195643]
[1673098920324,2.76765055,16941.0,16940.0,39.98195643]
[1673098920547,3.36572172,16941.0,16940.0,39.98195643]
[1673098920801,3.36572172,16941.0,16940.0,40.07689446]
[1673098921339,3.36572172,16941.0,16940.0,40.07203946]
[1673098922736,3.36572172,16941.0,16940.0,40.07286182]
[1673098923262,3.36572172,16941.0,16940.0,40.07203946]
[1673098926222,2.15979355,16941.0,16940.0,40.07203946]
[1673098926479,2.15979355,16941.0,16940.0,40.66235746]
[1673098927458,2.76765055,16941.0,16940.0,40.66235746]
[1673098929475,2.15979355,16941.0,16940.0,40.66235746]
[1673098930677,2.76765055,16941.0,16940.0,40.66235746]
[1673098931199,2.15979355,16941.0,16940.0,40.66235746]
[1673098932184,2.76765055,16941.0,16940.0,40.66235746]
[1673098936220,3.36572172,16941.0,16940.0,40.66235746]
[1673098938765,2.15979355,16941.0,16940.0,40.66235746]
[1673098938987,2.69132398,16941.0,16940.0,40.96235746]
[1673098939222,3.29918098,16941.0,16940.0,40.66235746]
[1673098939886,2.76765055,16941.0,16940.0,40.66235746]
[1673098945879,2.76765055,16941.0,16940.0,40.6622399]
[1673098954364,3.29917769,16941.0,16940.0,40.6622399]
[1673098954887,2.76765055,16941.0,16940.0,40.6622399]
[1673098955476,3.29917057,16941.0,16940.0,40.6622399]
[1673098955749,2.76765055,16941.0,16940.0,40.6622399]
[1673098957286,2.76765055,16941.0,16940.0,40.66306226]
[1673098957547,2.76765055,16941.0,16940.0,40.6622399]
[1673098958112,2.76765055,16941.0,16940.0,40.66306226]
[1673098960905,2.76765055,16941.0,16940.0,40.6622399]
[1673098965624,2.76765055,16941.0,16940.0,40.66306226]
[1673098966363,2.76765055,16941.0,16940.0,40.66295007]
[1673098967499,2.76765055,16941.0,16940.0,38.36295007]
[1673098968874,2.76765055,16941.0,16940.0,38.36212771]
[1673098969965,3.36572172,16941.0,16940.0,38.36212771]
[1673098970658,2.76765055,16941.0,16940.0,38.36212771]
[1673098972169,3.36572172,16941.0,16940.0,38.36212771]
[1673098972668,3.36572172,16941.0,16940.0,38.36295007]
[1673098973584,3.36561852,16941.0,16940.0,38.36295007]
[1673098979355,2.03297735,16941.0,16940.0,38.36295007]
[1673098979859,2.63104852,16941.0,16940.0,38.36295007]
[1673098980413,2.03297735,16941.0,16940.0,38.37201585]
[1673098980669,2.63104852,16941.0,16940.0,38.37201585]
[1673098986785,2.03297735,16941.0,16940.0,38.37201585]
[1673098987537,2.63104852,16941.0,16940.0,38.37201585]
[1673098988540,2.03297735,16941.0,16940.0,38.37201585]
[1673098991465,2.63104852,16941.0,16940.0,38.37201585]
[1673098992710,2.63104852,16941.0,16940.0,38.27707782]
[1673098993652,2.63104852,16941.0,16940.0,38.37016982]
[1673098994554,1.42512035,16941.0,16940.0,38.37016982]
[1673098996567,2.03297735,16941.0,16940.0,38.37016982]
[1673098997072,1.42512035,16941.0,16940.0,38.37016982]
[1673098999086,2.03297735,16941.0,16940.0,38.37016982]
[1673099001101,2.03297735,16941.0,16940.0,38.37006285]
[1673099010533,2.03297735,16941.0,16940.0,38.36924049]
[1673099010790,2.80434852,16941.0,16940.0,37.25721219]
[1673099013459,2.80434852,16941.0,16940.0,37.25803455]
[1673099020965,2.80434852,16941.0,16940.0,37.25721219]
[1673099021234,2.40462652,16941.0,16940.0,37.25721219]
[1673099024388,2.40462652,16941.0,16940.0,37.25803455]
[1673099026110,2.40462652,16941.0,16940.0,37.25721219]
[1673099026365,2.9236593,16941.0,16940.0,37.25721219]
[1673099026896,2.9236593,16941.0,16940.0,35.86116978]
[1673099026897,2.80470723,16941.0,16940.0,35.86116978]
[1673099027388,2.80470723,16941.0,16940.0,35.27085178]
[1673099034138,2.84470723,16941.0,16940.0,35.28185178]
[1673099041791,3.17302894,16941.0,16940.0,35.28185178]
[1673099042034,3.59482183,16941.0,16940.0,35.28185178]
[1673099042279,3.8722087,16941.0,16940.0,35.28185178]
[1673099045605,3.45041581,16941.0,16940.0,35.28185178]
[1673099049590,2.87022293,16941.0,16940.0,35.28185178]
[1673099049841,3.17302894,16941.0,16940.0,35.28174133]
[1673099050078,3.45041581,16941.0,16940.0,35.28174133]
[1673099050321,2.87022293,16941.0,16940.0,35.28174133]
[1673099050581,2.59283606,16941.0,16940.0,35.28174133]
[1673099050837,3.62356643,16941.0,16940.0,35.28174133]
[1673099051083,3.9009533,16941.0,16940.0,35.28174133]
[1673099053098,3.32076042,16941.0,16940.0,35.28174133]
[1673099053384,3.9009533,16941.0,16940.0,35.28174133]
[1673099053869,3.32076042,16941.0,16940.0,35.28174133]
[1673099054371,3.62356643,16941.0,16940.0,35.28174133]
[1673099054625,3.9009533,16941.0,16940.0,35.28174133]
[1673099055394,3.32076042,16941.0,16940.0,35.28174133]
[1673099056928,2.87022293,16941.0,16940.0,35.28174133]
[1673099059268,2.52402293,16941.0,16940.0,35.28174133]
[1673099059520,2.24663606,16941.0,16940.0,35.28174133]
[1673099061336,2.26360806,16941.0,16940.0,35.28174133]
[1673099070317,2.26360806,16941.0,16940.0,35.28165429]
[1673099089911,2.26360806,16941.0,16940.0,35.18856229]
[1673099090766,2.26360806,16941.0,16940.0,35.27226357]
[1673099091381,2.26360806,16941.0,16940.0,35.27335892]
[1673099091870,2.26360806,16941.0,16940.0,35.18856229]
[1673099092869,2.26360806,16941.0,16940.0,35.27217285]
[1673099093891,2.26360806,16941.0,16940.0,35.18847157]
[1673099094652,2.26360806,16941.0,16940.0,35.27217285]
[1673099095685,2.26360806,16941.0,16940.0,35.18847157]
[1673099096714,2.26360806,16941.0,16940.0,35.27217285]
[1673099098482,2.26354137,16941.0,16940.0,35.27217285]
[1673099101373,2.25578037,16941.0,16940.0,35.27217285]
[1673099118692,1.73674759,16941.0,16940.0,35.27217285]
[1673099118963,1.55371627,16941.0,16940.0,36.99454539]
[1673099120254,0.95559059,16941.0,16940.0,37.57473827]
[1673099121265,0.95559059,16941.0,16940.0,36.99454539]
[1673099122531,1.56344759,16941.0,16940.0,36.99454539]
[1673099123032,0.95559059,16941.0,16940.0,36.99454539]
[1673099123288,1.48679829,16941.0,16940.0,36.99454539]
[1673099123541,0.95559059,16941.0,16940.0,36.99454539]
[1673099124289,1.48679608,16941.0,16940.0,36.99454539]
[1673099124572,1.48679608,16941.0,16940.0,36.99442977]
[1673099124835,2.09465308,16941.0,16940.0,36.99442977]
[1673099125343,1.56344759,16941.0,16940.0,36.99442977]
[1673099125587,1.56344759,16941.0,16940.0,36.40411177]
[1673099128014,2.09452157,16941.0,16940.0,36.40411177]
[1673099129330,2.09452157,16941.0,16940.0,36.99442977]
[1673099130103,1.48666457,16941.0,16940.0,36.99442977]
[1673099130357,1.48666457,16941.0,16940.0,37.59951042]
[1673099130607,1.48666457,16941.0,16940.0,37.57462265]
[1673099131126,1.48666457,16941.0,16940.0,37.87462265]
[1673099131376,0.95559059,16941.0,16940.0,38.89324865]
[1673099132145,0.95559059,16941.0,16940.0,38.29324865]
[1673099132389,0.95559059,16941.0,16940.0,37.87462265]
[1673099134425,1.39792765,16941.0,16940.0,37.87462265]
[1673099134932,1.39792765,16941.0,16940.0,38.43595486]
[1673099135186,1.75172359,16941.0,16940.0,38.43595486]
[1673099135437,1.39792765,16941.0,16940.0,38.01732886]
[1673099137448,1.75167065,16941.0,16940.0,38.01732886]
[1673099138461,1.75167065,16941.0,16940.0,38.43595486]
[1673099138970,1.75167065,16941.0,16940.0,38.01732886]
[1673099139480,1.57459074,16941.0,16940.0,38.01732886]
[1673099146614,1.57459074,16941.0,16940.0,38.0172412]
[1673099146861,2.0169278,16941.0,16940.0,38.0172412]
[1673099147109,1.75167065,16941.0,16940.0,38.0172412]
[1673099147401,2.0168746,16941.0,16940.0,38.0172412]
[1673099147608,1.75167065,16941.0,16940.0,38.0172412]
[1673099149218,2.01689673,16941.0,16940.0,38.0172412]
[1673099149462,1.75167065,16941.0,16940.0,38.0172412]
[1673099149703,2.0168958,16941.0,16940.0,38.0172412]
[1673099150034,1.57455874,16941.0,16940.0,38.0172412]
[1673099150035,2.0168958,16941.0,16940.0,38.0172412]
[1673099150282,1.57455874,16941.0,16940.0,38.0172412]
[1673099152640,1.75167065,16941.0,16940.0,38.0172412]
[1673099157030,1.75167065,16941.0,16940.0,38.4358672]
[1673099157527,1.75167065,16941.0,16940.0,38.6097672]
[1673099158055,1.75167065,16941.0,16940.0,38.1911412]
[1673099159655,1.75190603,16941.0,16940.0,38.1911412]
[1673099160431,1.39792765,16941.0,16940.0,38.1911412]
[1673099163004,1.39792765,16941.0,16940.0,38.6097672]
[1673099163276,1.39792765,16941.0,16940.0,38.1911412]
[1673099163524,1.75194622,16941.0,16940.0,38.6097672]
[1673099163772,1.75194622,16941.0,16940.0,38.1911412]
[1673099164787,1.39792765,16941.0,16940.0,38.1911412]
[1673099165042,1.75197282,16941.0,16940.0,38.73777933]
[1673099165284,1.39792765,16941.0,16940.0,38.73777933]
[1673099165836,1.35792765,16941.0,16940.0,38.72677933]
[1673099170589,1.35792765,16941.0,16940.0,38.72666696]
[1673099179500,1.35792765,16941.0,16940.0,38.37886696]
[1673099191588,1.35792765,16941.0,16940.0,38.37875077]
[1673099200008,0.91559059,16941.0,16940.0,38.37875077]
[1673099201523,0.91559059,16941.0,16940.0,37.96012477]
[1673099205022,0.53107398,16942.0,16941.0,34.25238336]
[1673099205275,0.53107398,16942.0,16941.0,36.7375297]